fUSD/lending_fUSD_20250610
["ID","MTS","AMOUNT","RATE_DAILY","PERIOD"]
[365183898,1749523852757,-258.021888,0.00016438,2]
[365183899,1749523852767,-843.48,0.00016438,2]
[365183900,1749523852776,-490.0,0.00016438,2]
[365183901,1749523852785,-490.0,0.00016438,2]
[365183902,1749523852795,-432.44854165,0.00016438,2]
[365183903,1749523852804,-151.0,0.00016438,2]
[365183904,1749523852813,-151.0,0.00016438,2]
[365183905,1749523852823,-490.0,0.00016438,2]
[365183906,1749523852832,-490.0,0.00016438,2]
[365183907,1749523852841,-192.13282865,0.00016438,2]
[365183908,1749523852851,-490.0,0.00016438,2]
[365183909,1749523852860,-220.33161962,0.00016438,2]
[365183910,1749523852869,-476.74417881,0.00016438,2]
[365183911,1749523852878,-486.34293725,0.00016438,2]
[365183912,1749523852887,-490.0,0.00016438,2]
[365183913,1749523852897,-519.61,0.00016438,2]
[365183914,1749523852906,-490.0,0.00016438,2]
[365183915,1749523852915,-490.0,0.00016438,2]
[365183916,1749523852924,-490.0,0.00016438,2]
[365183917,1749523852932,-490.0,0.00016438,2]
[365183918,1749523852942,-490.0,0.00016438,2]
[365183919,1749523852950,-490.0,0.00016438,2]
[365183920,1749523852959,-204.19746357,0.00016438,2]
[365183921,1749523852968,-151.0,0.00016438,2]
[365183922,1749523852977,-151.0,0.00016438,2]
[365183923,1749523852986,-1617.24,0.00016438,2]
[365183924,1749523852995,-151.0,0.00016438,2]
[365183925,1749523853005,-172.384948,0.00016438,2]
[365183926,1749523853014,-490.0,0.00016438,2]
[365183927,1749523853023,-490.0,0.00016438,2]
[365183928,1749523853032,-490.0,0.00016438,2]
[365183929,1749523853041,-490.0,0.00016438,2]
[365183930,1749523853050,-490.0,0.00016438,2]
[365183931,1749523853059,-490.0,0.00016438,2]
[365183932,1749523853067,-490.0,0.00016438,2]
[365183933,1749523853076,-2049.09673896,0.00016438,2]
[365183934,1749523853086,-490.0,0.00016438,2]
[365183935,1749523853095,-490.0,0.00016438,2]
[365183936,1749523853104,-490.0,0.00016438,2]
[365183937,1749523853113,-490.0,0.00016438,2]
[365183938,1749523853122,-490.0,0.00016438,2]
[365183939,1749523853131,-480.0,0.00016438,2]
[365183940,1749523853140,-490.0,0.00016438,2]
[365183941,1749523853149,-2173.903736,0.00016438,2]
[365183942,1749523853157,-973.74,0.00016438,2]
[365183943,1749523853166,-493.55480636,0.00016438,2]
[365183944,1749523853175,-480.70034227,0.00016438,2]
[365183945,1749523853185,-508.18,0.00016438,2]
[365183946,1749523853194,-490.0,0.00016438,2]
[365183947,1749523853204,-445.93642386,0.00016438,2]
[365183948,1749523853217,-443.91829054,0.00016438,2]
[365183949,1749523853226,-490.0,0.00016438,2]
[365183950,1749523853235,-490.0,0.00016438,2]
[365183951,1749523853245,-490.0,0.00016438,2]
[365183952,1749523853255,-490.0,0.00016438,2]
[365183953,1749523853264,-460.0,0.00016438,2]
[365183954,1749523853273,-490.0,0.00016438,2]
[365183955,1749523853283,-374.63901465,0.00016438,2]
[365183956,1749523853294,-28192.67,0.00016438,2]
[365183957,1749523853303,-490.0,0.00016438,2]
[365183958,1749523853314,-490.0,0.00016438,2]
[365183959,1749523853323,-490.0,0.00016438,2]
[365183960,1749523853333,-490.0,0.00016438,2]
[365183961,1749523853342,-499.16,0.00016438,2]
[365183962,1749523853351,-1367.68,0.00016438,2]
[365183963,1749523853361,-480.0,0.00016438,2]
[365183964,1749523853370,-490.0,0.00016438,2]
[365183965,1749523853379,-454.11840976,0.00016438,2]
[365183966,1749523853390,-490.0,0.00016438,2]
[365183967,1749523853406,-440.41971807,0.00016438,2]
[365183968,1749523853415,-490.0,0.00016438,2]
[365183969,1749523853425,-490.0,0.00016438,2]
[365183970,1749523853434,-490.0,0.00016438,2]
[365183971,1749523853445,-151.0,0.00016438,2]
[365183972,1749523853455,-151.0,0.00016438,2]
[365183973,1749523853464,-151.0,0.00016438,2]
[365183974,1749523853473,-151.0,0.00016438,2]
[365183975,1749523853482,-490.0,0.00016438,2]
[365183976,1749523853491,-151.0,0.00016438,2]
[365183977,1749523853502,-151.0,0.00016438,2]
[365183978,1749523853511,-490.0,0.00016438,2]
[365183979,1749523853520,-151.0,0.00016438,2]
[365183980,1749523853530,-948.42,0.00016438,2]
[365183981,1749523853539,-151.0,0.00016438,2]
[365183982,1749523853548,-490.0,0.00016438,2]
[365183983,1749523853557,-151.0,0.00016438,2]
[365183984,1749523853566,-457.84455704,0.00016438,2]
[365183985,1749523853575,-486.65686105,0.00016438,2]
[365183986,1749523853585,-460.0,0.00016438,2]
[365183987,1749523853594,-852.1,0.00016438,2]
[365183988,1749523853604,-490.0,0.00016438,2]
[365183989,1749523853613,-151.0,0.00016438,2]
[365183990,1749523853622,-151.0,0.00016438,2]
[365183991,1749523853631,-490.0,0.00016438,2]
[365183992,1749523853642,-610.07640225,0.00016438,2]
[365183993,1749523853651,-151.0,0.00016438,2]
[365183994,1749523853660,-151.0,0.00016438,2]
[365183995,1749523853670,-490.0,0.00016438,2]
[365183996,1749523853679,-460.0,0.00016438,2]
[365183997,1749523853689,-151.0,0.00016438,2]
[365183998,1749523853698,-151.0,0.00016438,2]
[365183999,1749523853707,-490.0,0.00016438,2]
[365184000,1749523853718,-151.0,0.00016438,2]
[365184001,1749523853728,-510.71648256,0.00016438,2]
[365184002,1749523853738,-172.757813,0.00016438,2]
[365184003,1749523853747,-496.89,0.00016438,2]
[365184004,1749523853758,-490.0,0.00016438,2]
[365184005,1749523853767,-490.0,0.00016438,2]
[365184006,1749523853776,-490.0,0.00016438,2]
[365184007,1749523853786,-151.0,0.00016438,2]
[365184008,1749523853795,-490.0,0.00016438,2]
[365184009,1749523853804,-151.0,0.00016438,2]
[365184010,1749523853813,-490.0,0.00016438,2]
[365184011,1749523853823,-160.448427,0.00016438,2]
[365184012,1749523853832,-291.52522831,0.00016438,2]
[365184013,1749523853841,-163.698174,0.00016438,2]
[365184014,1749523853851,-490.0,0.00016438,2]
[365184015,1749523853860,-323.96175297,0.00016438,2]
[365184016,1749523853870,-490.0,0.00016438,2]
[365184017,1749523853879,-490.0,0.00016438,2]
[365184018,1749523853888,-167.834989,0.00016438,2]
[365184019,1749523853897,-490.0,0.00016438,2]
[365184020,1749523853907,-490.0,0.00016438,2]
[365184021,1749523853916,-490.0,0.00016438,2]
[365184022,1749523853925,-490.0,0.00016438,2]
[365184023,1749523853934,-654.14,0.00016438,2]
[365184024,1749523853943,-646.1,0.00016438,2]
[365184025,1749523853953,-151.0,0.00016438,2]
[365184026,1749523853962,-3478.652439,0.00016438,2]
[365184027,1749523853971,-2267.41,0.00016438,2]
[365184028,1749523853980,-22.79851888,0.00016438,2]
[365184029,1749523901759,980.0,0.00024658,120]
[365184030,1749523917062,2926.18,0.00015547,2]
[365184031,1749523922361,3061.51856929,0.00024658,120]
[365184032,1749523932270,403.0,0.00015811,2]
[365184033,1749523976052,1333.0,0.00024294,120]
[365184034,1749523992334,1000.0,0.00015531,2]
[365184035,1749524027391,346.29,0.000244,120]
[365184036,1749524250878,237.69,0.00013699,2]
[365184037,1749524291840,399.0,0.00015257,2]
[365184038,1749524292152,399.0,0.00015709,2]
[365184098,1749524381275,204.0,0.00015257,2]
[365184099,1749524396522,150.0,0.00015465,7]
[365184100,1749524399796,586.58,0.00015465,2]
[365184103,1749524591967,160.36,0.00015431,2]
[365184104,1749524592860,685.02,0.00013513,2]
[365184105,1749524593273,685.02,0.00015777,2]
[365184106,1749524625210,438.27,0.00015439,2]
[365184107,1749524651635,391.0,0.00015161,2]
[365184108,1749524651893,391.0,0.00015614,2]
[365184109,1749524652757,-208.62809662,0.00016067,3]
[365184110,1749524655426,-182.37190338,0.00016067,3]
[365184111,1749524718306,154.55,0.00017052,10]
[365184112,1749524757422,1333.0,0.00024621,120]
[365184113,1749524826291,500.0,0.000166,6]
[365184114,1749524828515,1000.0,0.000167,6]
[365184115,1749524830472,1500.0,0.000168,6]
[365184116,1749524832579,2000.0,0.000169,6]
[365184117,1749524872651,23519.8,0.00015442,2]
[365184118,1749525011704,379.0,0.0001552,2]
[365184119,1749525011973,379.0,0.00015969,2]
[365184124,1749525031865,-500.0,0.00016161,2]
[365184125,1749525031874,-500.0,0.00016161,2]
[365184126,1749525031884,-300.0,0.00016183,2]
[365184127,1749525031894,-250.0,0.00016204,2]
[365184128,1749525031904,-364.18107276,0.00016247,2]
[365184129,1749525031914,-3948.55818043,0.00016278,2]
[365184130,1749525031924,-51837.44543018,0.00016278,2]
[365184145,1749525037750,-1291.95,0.00016278,2]
[365184146,1749525037814,-21888.5320446,0.00016278,2]
[365184147,1749525037824,-364.18107276,0.00016301,2]
[365184148,1749525037834,-500.0,0.00016307,2]
[365184149,1749525037843,-9206.1769623,0.00016309,2]
[365184150,1749525037852,-319.69566022,0.00016313,2]
[365184151,1749525037861,-300.0,0.00016317,2]
[365184152,1749525037871,-300.0,0.00016317,2]
[365184153,1749525037880,-1200.0,0.00016317,2]
[365184154,1749525037890,-75017.92747478,0.00016318,2]
[365184155,1749525037900,-1957.856,0.00016318,2]
[365184156,1749525037909,-207.4,0.00016318,2]
[365184157,1749525037919,-26720.72933737,0.00016319,2]
[365184158,1749525037928,-3948.55818043,0.00016321,2]
[365184159,1749525037938,-500.0,0.00016322,2]
[365184160,1749525037948,-506.11733586,0.00016322,2]
[365184161,1749525037958,-500.0,0.00016322,2]
[365184162,1749525037970,-500.0,0.00016322,2]
[365184163,1749525037979,-465.95530108,0.00016322,2]
[365184164,1749525038023,-34.04469892,0.00016322,2]
[365184165,1749525038033,-504.34413992,0.00016322,2]
[365184166,1749525038043,-222.06910025,0.00016322,2]
[365184167,1749525038052,-307.67584762,0.00016322,2]
[365184168,1749525038061,-500.0,0.00016322,2]
[365184169,1749525038071,-500.0,0.00016322,2]
[365184170,1749525038080,-500.0,0.00016322,2]
[365184171,1749525038090,-500.0,0.00016322,2]
[365184172,1749525038100,-500.0,0.00016322,2]
[365184173,1749525038109,-500.0,0.00016322,2]
[365184174,1749525038119,-500.0,0.00016322,2]
[365184175,1749525038128,-500.0,0.00016322,2]
[365184176,1749525038137,-471.92402244,0.00016322,2]
[365184177,1749525038147,-500.0,0.00016322,2]
[365184178,1749525038164,-500.0,0.00016322,2]
[365184179,1749525038178,-500.0,0.00016322,2]
[365184180,1749525038189,-500.0,0.00016322,2]
[365184181,1749525038199,-500.0,0.00016322,2]
[365184182,1749525038209,-500.0,0.00016322,2]
[365184183,1749525038219,-500.0,0.00016322,2]
[365184184,1749525038229,-500.0,0.00016322,2]
[365184185,1749525038239,-384.17250312,0.00016322,2]
[365184186,1749525038248,-500.0,0.00016322,2]
[365184187,1749525038258,-500.0,0.00016322,2]
[365184188,1749525038267,-431.93084953,0.00016322,2]
[365184189,1749525038277,-500.0,0.00016322,2]
[365184191,1749525038287,-500.0,0.00016322,2]
[365184193,1749525038297,-500.0,0.00016322,2]
[365184195,1749525038307,-500.0,0.00016322,2]
[365184197,1749525038316,-500.0,0.00016322,2]
[365184199,1749525038326,-500.0,0.00016322,2]
[365184201,1749525038335,-500.0,0.00016322,2]
[365184203,1749525038345,-500.0,0.00016322,2]
[365184205,1749525038355,-500.0,0.00016322,2]
[365184207,1749525038365,-500.0,0.00016322,2]
[365184209,1749525038375,-500.0,0.00016322,2]
[365184211,1749525038385,-500.0,0.00016322,2]
[365184213,1749525038395,-500.0,0.00016322,2]
[365184215,1749525038406,-500.0,0.00016322,2]
[365184217,1749525038415,-500.0,0.00016322,2]
[365184219,1749525038425,-500.0,0.00016322,2]
[365184221,1749525038434,-500.0,0.00016322,2]
[365184223,1749525038444,-500.0,0.00016322,2]
[365184225,1749525038454,-500.0,0.00016322,2]
[365184227,1749525038464,-500.0,0.00016322,2]
[365184229,1749525038474,-500.0,0.00016322,2]
[365184231,1749525038483,-500.0,0.00016322,2]
[365184232,1749525038492,-500.0,0.00016322,2]
[365184235,1749525038502,-500.0,0.00016322,2]
[365184236,1749525038512,-500.0,0.00016322,2]
[365184239,1749525038522,-500.0,0.00016322,2]
[365184240,1749525038531,-500.0,0.00016322,2]
[365184243,1749525038542,-500.0,0.00016322,2]
[365184244,1749525038551,-500.0,0.00016322,2]
[365184246,1749525038560,-500.0,0.00016322,2]
[365184248,1749525038570,-500.0,0.00016322,2]
[365184250,1749525038580,-500.0,0.00016322,2]
[365184252,1749525038590,-1000.0,0.00016327,2]
[365184254,1749525038600,-202.33331721,0.00016327,2]
[365184256,1749525038610,-172.10338283,0.00016327,2]
[365184258,1749525038621,-191.79206204,0.00016327,2]
[365184260,1749525038630,-206.52246335,0.00016327,2]
[365184262,1749525038639,-263.23439669,0.00016327,2]
[365184264,1749525038649,-3371.95522897,0.00016328,2]
[365184267,1749525038663,-93591.50457103,0.00016328,2]
[365184269,1749525038675,-5554.04029657,0.00016332,2]
[365184270,1749525038688,-159.72137022,0.00016338,2]
[365184272,1749525038699,-12989.71618108,0.00016346,2]
[365184274,1749525038709,-1806.09376101,0.00016351,2]
[365184276,1749525038719,-26720.72933737,0.00016353,2]
[365184278,1749525038728,-319.69566022,0.00016355,2]
[365184280,1749525038737,-12989.71618108,0.0001636,2]
[365184282,1749525038747,-319.69566022,0.00016362,2]
[365184284,1749525038756,-468.43287607,0.00016362,2]
[365184287,1749525038766,-17146.02021357,0.0001637,2]
[365184416,1749525040112,-57871.90726121,0.0001637,2]
[365184418,1749525040122,-468.43287607,0.0001637,2]
[365184420,1749525040131,-2030.296672,0.00016373,2]
[365184422,1749525040140,-26720.72933737,0.00016375,2]
[365184424,1749525040150,-9206.1769623,0.00016377,2]
[365184426,1749525040159,-468.43287607,0.0001638,2]
[365184428,1749525040168,-364.18107276,0.00016384,2]
[365184430,1749525040177,-12989.71618108,0.00016385,2]
[365184432,1749525040186,-3948.55818043,0.00016388,2]
[365184434,1749525040195,-9206.1769623,0.00016392,2]
[365184436,1749525040204,-379.0,0.00016418,3]
[365184438,1749525040214,-151.0,0.00016428,2]
[365184440,1749525040223,-1000.0,0.00016428,2]
[365184442,1749525040232,-578.13310369,0.00016428,2]
[365184444,1749525040242,-2105.41764886,0.00016428,2]
[365184446,1749525040251,-1101.7907311,0.00016432,2]
[365184448,1749525040261,-25352.8056666,0.00016432,2]
[365184450,1749525040270,-3713.7228258,0.00016432,2]
[365184452,1749525040280,-37625.3279999,0.00016432,2]
[365184454,1749525040289,-37739.952,0.00016432,2]
[365184456,1749525040298,-3185.8790904,0.00016432,2]
[365184458,1749525040307,-1000.09,0.00016435,2]
[365184460,1749525040318,-262.4039292,0.00016438,2]
[365184462,1749525040327,-484.86218502,0.00016438,2]
[365184464,1749525040336,-378.51527186,0.00016438,2]
[365184466,1749525040346,-489.48618242,0.00016438,2]
[365184468,1749525040356,-482.10543183,0.00016438,2]
[365184470,1749525040366,-293.7235012,0.00016438,2]
[365184472,1749525040375,-482.4228416,0.00016438,2]
[365184501,1749525040644,-480.0,0.00016438,2]
[365184503,1749525040654,-522.22548693,0.00016438,2]
[365184505,1749525040664,-480.0,0.00016438,2]
[365184507,1749525040673,-490.0,0.00016438,2]
[365184509,1749525040682,-490.0,0.00016438,2]
[365184511,1749525040691,-463.67084483,0.00016438,2]
[365184513,1749525040700,-467.91625873,0.00016438,2]
[365184515,1749525040709,-475.33803963,0.00016438,2]
[365184517,1749525040718,-490.0,0.00016438,2]
[365184519,1749525040727,-490.0,0.00016438,2]
[365184521,1749525040736,-490.0,0.00016438,2]
[365184523,1749525040745,-490.0,0.00016438,2]
[365184525,1749525040754,-490.0,0.00016438,2]
[365184526,1749525040763,-430.3264467,0.00016438,2]
[365184528,1749525040772,-490.0,0.00016438,2]
[365184530,1749525040782,-490.0,0.00016438,2]
[365184532,1749525040791,-226.51746107,0.00016438,2]
[365184534,1749525040800,-422.04834715,0.00016438,2]
[365184536,1749525040809,-490.0,0.00016438,2]
[365184538,1749525040818,-490.0,0.00016438,2]
[365184540,1749525040827,-490.0,0.00016438,2]
[365184542,1749525040836,-59.69254357,0.00016438,2]
[365184545,1749525040850,-430.30745643,0.00016438,2]
[365184547,1749525040859,-480.0,0.00016438,2]
[365184549,1749525040868,-490.0,0.00016438,2]
[365184551,1749525040877,-490.0,0.00016438,2]
[365184553,1749525040886,-490.0,0.00016438,2]
[365184555,1749525040895,-490.0,0.00016438,2]
[365184557,1749525040904,-468.37705258,0.00016438,2]
[365184559,1749525040914,-506.52262082,0.00016438,2]
[365184561,1749525040924,-323.95503392,0.00016438,2]
[365184563,1749525040933,-490.0,0.00016438,2]
[365184565,1749525040942,-490.0,0.00016438,2]
[365184567,1749525040951,-490.0,0.00016438,2]
[365184569,1749525040960,-63.97349996,0.00016438,2]
[365184572,1749525040981,-425.81217015,0.00016438,2]
[365184574,1749525040991,-490.0,0.00016438,2]
[365184576,1749525041000,-490.0,0.00016438,2]
[365184578,1749525041009,-490.0,0.00016438,2]
[365184580,1749525041018,-490.0,0.00016438,2]
[365184582,1749525041027,-490.0,0.00016438,2]
[365184584,1749525041037,-536.75576458,0.00016438,2]
[365184586,1749525041046,-481.84153269,0.00016438,2]
[365184588,1749525041054,-492.41083088,0.00016438,2]
[365184590,1749525041063,-436.6600404,0.00016438,2]
[365184592,1749525041071,-490.0,0.00016438,2]
[365184594,1749525041079,-490.0,0.00016438,2]
[365184596,1749525041087,-490.0,0.00016438,2]
[365184597,1749525041094,-490.0,0.00016438,2]
[365184599,1749525041103,-490.0,0.00016438,2]
[365184601,1749525041112,-436.1938546,0.00016438,2]
[365184603,1749525041121,-490.0,0.00016438,2]
[365184605,1749525041130,-300.0,0.00016438,2]
[365184607,1749525041139,-218.05317133,0.00016438,2]
[365184609,1749525041148,-490.0,0.00016438,2]
[365184611,1749525041157,-490.0,0.00016438,2]
[365184613,1749525041166,-490.0,0.00016438,2]
[365184615,1749525041175,-490.0,0.00016438,2]
[365184617,1749525041184,-300.65496705,0.00016438,2]
[365184619,1749525041194,-490.0,0.00016438,2]
[365184621,1749525041203,-490.0,0.00016438,2]
[365184623,1749525041212,-490.0,0.00016438,2]
[365184625,1749525041221,-480.0,0.00016438,2]
[365184627,1749525041230,-490.0,0.00016438,2]
[365184629,1749525041239,-490.0,0.00016438,2]
[365184631,1749525041248,-495.92677705,0.00016438,2]
[365184633,1749525041257,-436.17363522,0.00016438,2]
[365184635,1749525041266,-480.0,0.00016438,2]
[365184637,1749525041275,-480.0,0.00016438,2]
[365184639,1749525041285,-490.0,0.00016438,2]
[365184641,1749525041295,-151.0,0.00016438,2]
[365184643,1749525041304,-490.03087275,0.00016438,2]
[365184645,1749525041313,-489.810198,0.00016438,2]
[365184647,1749525041322,-480.0,0.00016438,2]
[365184649,1749525041331,-481.85247407,0.00016438,2]
[365184651,1749525041340,-490.0,0.00016438,2]
[365184653,1749525041350,-490.0,0.00016438,2]
[365184655,1749525041359,-490.10634696,0.00016438,2]
[365184657,1749525041368,-490.0,0.00016438,2]
[365184659,1749525041378,-430.51319928,0.00016438,2]
[365184661,1749525041387,-490.0,0.00016438,2]
[365184663,1749525041396,-490.0,0.00016438,2]
[365184665,1749525041405,-480.0,0.00016438,2]
[365184667,1749525041414,-490.0,0.00016438,2]
[365184669,1749525041424,-490.0,0.00016438,2]
[365184671,1749525041433,-150.0,0.00016438,2]
[365184673,1749525041443,-511.98651558,0.00016438,2]
[365184675,1749525041452,-490.0,0.00016438,2]
[365184677,1749525041461,-490.0,0.00016438,2]
[365184679,1749525041471,-150.0,0.00016438,2]
[365184681,1749525041481,-490.0,0.00016438,2]
[365184684,1749525041490,-150.0,0.00016438,2]
[365184685,1749525041500,-490.0,0.00016438,2]
[365184688,1749525041510,-490.0,0.00016438,2]
[365184690,1749525041519,-485.81233055,0.00016438,2]
[365184692,1749525041529,-150.0,0.00016438,2]
[365184694,1749525041539,-480.0,0.00016438,2]
[365184695,1749525041548,-500.0,0.00016438,2]
[365184698,1749525041557,-500.0,0.00016438,2]
[365184700,1749525041567,-495.05768406,0.00016438,2]
[365184701,1749525041580,-490.0,0.00016438,2]
[365184703,1749525041589,-434.82032896,0.00016438,2]
[365184705,1749525041599,-156.40363163,0.00016438,2]
[365184708,1749525041609,-480.0,0.00016438,2]
[365184710,1749525041620,-490.0,0.00016438,2]
[365184712,1749525041629,-490.0,0.00016438,2]
[365184714,1749525041639,-490.0,0.00016438,2]
[365184716,1749525041648,-490.0,0.00016438,2]
[365184717,1749525041658,-454.93653296,0.00016438,2]
[365184719,1749525041667,-490.0,0.00016438,2]
[365184721,1749525041677,-490.0,0.00016438,2]
[365184724,1749525041686,-485.18859968,0.00016438,2]
[365184726,1749525041696,-490.0,0.00016438,2]
[365184727,1749525041705,-492.42000648,0.00016438,2]
[365184730,1749525041715,-490.13508568,0.00016438,2]
[365184732,1749525041725,-490.0,0.00016438,2]
[365184734,1749525041735,-490.0,0.00016438,2]
[365184736,1749525041744,-490.54938036,0.00016438,2]
[365184738,1749525041754,-490.0,0.00016438,2]
[365184740,1749525041764,-490.0,0.00016438,2]
[365184742,1749525041773,-480.68727271,0.00016438,2]
[365184744,1749525041782,-490.0,0.00016438,2]
[365184746,1749525041792,-476.9325197,0.00016438,2]
[365184748,1749525041801,-490.0,0.00016438,2]
[365184750,1749525041810,-152.23925,0.00016438,2]
[365184751,1749525041819,-490.0,0.00016438,2]
[365184753,1749525041828,-490.0,0.00016438,2]
[365184755,1749525041837,-490.0,0.00016438,2]
[365184757,1749525041847,-407.6196079,0.00016438,2]
[365184759,1749525041856,-490.0,0.00016438,2]
[365184761,1749525041865,-490.0,0.00016438,2]
[365184763,1749525041876,-481.96861191,0.00016438,2]
[365184766,1749525041885,-483.89381241,0.00016438,2]
[365184768,1749525041895,-464.35954795,0.00016438,2]
[365184770,1749525041904,-503.65183475,0.00016438,2]
[365184772,1749525041913,-495.36263462,0.00016438,2]
[365184774,1749525041923,-475.78512377,0.00016438,2]
[365184776,1749525041932,-490.0,0.00016438,2]
[365184778,1749525041941,-482.0026086,0.00016438,2]
[365184780,1749525041950,-490.0,0.00016438,2]
[365184782,1749525041959,-490.0,0.00016438,2]
[365184784,1749525041970,-490.0,0.00016438,2]
[365184786,1749525041979,-490.0,0.00016438,2]
[365184788,1749525041991,-490.0,0.00016438,2]
[365184790,1749525041999,-490.0,0.00016438,2]
[365184792,1749525042009,-491.39582105,0.00016438,2]
[365184794,1749525042019,-485.01425136,0.00016438,2]
[365184796,1749525042028,-490.0,0.00016438,2]
[365184798,1749525042038,-490.0,0.00016438,2]
[365184800,1749525042046,-480.0,0.00016438,2]
[365184802,1749525042056,-481.11791873,0.00016438,2]
[365184804,1749525042065,-379.77016245,0.00016438,2]
[365184806,1749525042075,-490.0,0.00016438,2]
[365184808,1749525042084,-470.0,0.00016438,2]
[365184810,1749525042093,-437.47926913,0.00016438,2]
[365184812,1749525042102,-519.6165923,0.00016438,2]
[365184814,1749525042111,-490.0,0.00016438,2]
[365184815,1749525042120,-410.63390286,0.00016438,2]
[365184816,1749525042129,-490.0,0.00016438,2]
[365184817,1749525042139,-490.0,0.00016438,2]
[365184818,1749525042148,-490.0,0.00016438,2]
[365184819,1749525042158,-496.43253686,0.00016438,2]
[365184820,1749525042167,-460.0,0.00016438,2]
[365184821,1749525042176,-386.02216637,0.00016438,2]
[365184822,1749525042184,-490.0,0.00016438,2]
[365184823,1749525042193,-465.85794912,0.00016438,2]
[365184824,1749525042203,-480.0,0.00016438,2]
[365184826,1749525042211,-161.874081,0.00016438,2]
[365184827,1749525042221,-509.70632419,0.00016438,2]
[365184829,1749525042230,-490.0,0.00016438,2]
[365184831,1749525042239,-490.0,0.00016438,2]
[365184834,1749525042249,-503.0,0.00016438,2]
[365184835,1749525042258,-706.89,0.00016438,2]
[365184837,1749525042267,-151.984739,0.00016438,2]
[365184839,1749525042277,-153.058974,0.00016438,2]
[365184841,1749525042286,-490.0,0.00016438,2]
[365184843,1749525042296,-480.0,0.00016438,2]
[365184845,1749525042306,-490.0,0.00016438,2]
[365184847,1749525042315,-490.0,0.00016438,2]
[365184849,1749525042324,-490.0,0.00016438,2]
[365184851,1749525042333,-490.0,0.00016438,2]
[365184853,1749525042343,-665.87,0.00016438,2]
[365184855,1749525042352,-302.55190893,0.00016438,2]
[365184857,1749525042361,-490.0,0.00016438,2]
[365184859,1749525042371,-490.0,0.00016438,2]
[365184861,1749525042380,-490.0,0.00016438,2]
[365184863,1749525042391,-490.0,0.00016438,2]
[365184864,1749525042401,-504.72,0.00016438,2]
[365184865,1749525042410,-490.0,0.00016438,2]
[365184866,1749525042419,-490.0,0.00016438,2]
[365184867,1749525042428,-469.49828956,0.00016438,2]
[365184868,1749525042437,-464.96595117,0.00016438,2]
[365184869,1749525042447,-579.14,0.00016438,2]
[365184870,1749525042455,-468.69580948,0.00016438,2]
[365184871,1749525042465,-490.0,0.00016438,2]
[365184872,1749525042474,-490.0,0.00016438,2]
[365184873,1749525042483,-490.0,0.00016438,2]
[365184874,1749525042493,-151.0,0.00016438,2]
[365184875,1749525042502,-151.0,0.00016438,2]
[365184876,1749525042511,-466.84733649,0.00016438,2]
[365184877,1749525042522,-490.0,0.00016438,2]
[365184878,1749525042531,-490.0,0.00016438,2]
[365184879,1749525042542,-464.52166075,0.00016438,2]
[365184880,1749525042551,-490.0,0.00016438,2]
[365184881,1749525042561,-510.01179046,0.00016438,2]
[365184882,1749525042571,-490.0,0.00016438,2]
[365184883,1749525042582,-490.0,0.00016438,2]
[365184885,1749525042592,-490.0,0.00016438,2]
[365184886,1749525042601,-262.79630412,0.00016438,2]